bitfinex/quotes_SOLUSD_20240920
["timestamp","ask_amount","ask_price","bid_price","bid_amount"]
[1726858593874,0.2502885,146.23,146.16,19.91085105]
[1726858594256,0.2502885,146.23,146.16,0.12549]
[1726858595374,0.2502885,146.23,146.16,19.78536105]
[1726858595870,0.2502885,146.23,146.2,19.65987105]
[1726858596074,0.2502885,146.23,146.22,19.65987105]
[1726858596261,0.2502885,146.23,146.22,19.91085105]
[1726858597574,0.2502885,146.23,146.2,19.65987105]
[1726858597770,0.2502885,146.23,146.21,0.12549]
[1726858598654,0.2502885,146.23,146.22,39.91085105]
[1726858599082,0.2502885,146.23,146.22,63.68773505]
[1726858599255,0.2502885,146.27,146.24,0.12549]
[1726858599456,0.2502885,146.27,146.25,19.65987105]
[1726858599655,0.2502885,146.27,146.26,21.36721934]
[1726858600684,0.2502885,146.27,146.26,21.49270934]
[1726858601887,0.2502885,146.27,146.26,20.0]
[1726858602266,0.2502885,146.27,146.26,21.61811352]
[1726858602669,0.2270885,146.27,146.26,21.61811352]
[1726858604382,0.2270885,146.27,146.26,25.39499752]
[1726858604579,0.2270885,146.27,146.26,45.39499752]
[1726858605089,0.2270885,146.27,146.25,24.027864]
[1726858605263,0.2270885,146.27,146.26,20.25098]
[1726858605767,0.2270885,146.27,146.26,21.61801722]
[1726858606781,0.2270885,146.27,146.26,0.25098]
[1726858607089,0.2270885,146.27,146.24,1.49255893]
[1726858607463,0.2270885,146.27,146.24,0.12549]
[1726858608085,0.2270885,146.27,146.25,0.12549]
[1726858609161,0.2270885,146.27,146.24,0.25098]
[1726858609776,0.2270885,146.27,146.23,20.0]
[1726858610089,0.2270885,146.27,146.22,20.0]
[1726858610607,0.2270885,146.27,146.19,15.9214]
[1726858611686,0.2270885,146.27,146.2,1.36756783]
[1726858611972,0.2270885,146.27,146.21,0.25098]
[1726858612176,0.2270885,146.27,146.22,1.36748364]
[1726858612386,0.2270885,146.27,146.21,0.25098]
[1726858614288,0.2270885,146.27,146.22,1.36748435]
[1726858614495,0.2270885,146.27,146.21,0.25098]
[1726858617800,0.2270885,146.27,146.2,20.0]
[1726858617801,23.776884,146.29,146.2,20.0]
[1726858617997,1.7094602,146.28,146.2,20.0]
[1726858619084,30.612584,146.29,146.2,20.0]
[1726858619483,23.776884,146.29,146.2,20.0]
[1726858619689,23.776884,146.29,146.21,1.36759306]
[1726858621375,23.776884,146.29,146.22,0.25098]
[1726858621702,6.6070626,146.3,146.23,1.36741068]
[1726858621875,6.6070626,146.3,146.22,19.91085105]
[1726858622201,6.6070626,146.3,146.23,12.57611894]
[1726858623481,25.4861285,146.29,146.21,12.82709894]
[1726858623699,25.4861285,146.29,146.22,20.0]
[1726858623878,30.612684,146.29,146.22,20.0]
[1726858624081,23.776884,146.29,146.22,20.0]
[1726858624294,30.612784,146.29,146.22,20.0]
[1726858624580,23.776884,146.29,146.22,20.0]
[1726858624784,23.776884,146.29,146.22,21.36758823]
[1726858624992,23.776884,146.29,146.22,12.57611894]
[1726858625190,1.70938237,146.28,146.22,12.57611894]
[1726858625394,1.70938237,146.28,146.22,20.0]
[1726858626290,23.776884,146.29,146.22,20.0]
[1726858626495,30.612684,146.29,146.22,20.0]
[1726858626694,23.776884,146.29,146.22,20.0]
[1726858628285,23.776884,146.29,146.22,21.36762665]
[1726858629099,23.776884,146.29,146.22,20.0]
[1726858629409,23.776884,146.29,146.23,1.36762522]
[1726858629788,6.6070626,146.3,146.23,13.94374416]
[1726858630109,6.6070626,146.3,146.24,12.57611894]
[1726858632004,6.6070626,146.3,146.2,20.0]
[1726858632005,1.70913469,146.29,146.23,12.57611894]
[1726858632204,1.70913469,146.29,146.22,12.57611894]
[1726858632389,1.70913469,146.29,146.21,12.82709894]
[1726858632716,6.6070626,146.3,146.22,33.94363506]
[1726858632913,23.776884,146.29,146.23,12.57611894]
[1726858633210,6.6070626,146.3,146.24,12.57611894]
[1726858634100,25.48610068,146.29,146.22,12.57611894]
[1726858634298,25.48610068,146.29,146.22,20.0]
[1726858635913,23.776884,146.29,146.22,12.57611894]
[1726858636395,23.776884,146.29,146.23,1.36754086]
[1726858637502,6.6070626,146.3,146.24,13.94365739]
[1726858637806,6.6070626,146.3,146.24,12.57611894]
[1726858638600,6.6070626,146.3,146.25,13.94350847]
[1726858638800,6.6070626,146.3,146.26,13.94340968]
[1726858639012,6.0851,146.31,146.26,13.94340968]
[1726858639217,0.2502885,146.32,146.26,13.94340968]
[1726858639786,0.2502885,146.32,146.27,12.57611894]
[1726858640626,0.2502885,146.32,146.28,13.9432548]
[1726858642613,0.2502885,146.32,146.28,1.36713586]
[1726858642823,0.2502885,146.32,146.27,12.57611894]
[1726858643698,0.2502885,146.32,146.28,10.0]
[1726858654639,0.2502885,146.32,146.28,22.57611894]
[1726858654814,0.2502885,146.32,146.29,13.94330268]
[1726858655735,0.2502885,146.32,146.29,12.57611894]
[1726858656118,0.2502885,146.32,146.31,12.57611894]
[1726858656321,0.2502885,146.32,146.31,48.10640894]
[1726858656632,0.2502885,146.32,146.31,15.4048]
[1726858656836,0.2502885,146.32,146.29,32.70160894]
[1726858657015,0.2502885,146.32,146.29,32.57611894]
[1726858660922,0.2502885,146.32,146.3,12.57611894]
[1726858662335,0.2502885,146.32,146.3,13.94295433]
[1726858662745,0.2502885,146.32,146.3,12.57611894]
[1726858663245,0.2502885,146.32,146.31,12.57611894]
[1726858663539,0.2502885,146.32,146.31,12.82709894]
[1726858663735,0.2502885,146.32,146.31,32.82709894]
[1726858663938,0.2502885,146.32,146.28,27.36715788]
[1726858663939,0.2502885,146.32,146.28,25.4048]
[1726858664131,0.2502885,146.32,146.29,32.57611894]
[1726858664331,0.2502885,146.32,146.3,12.57611894]
[1726858664642,0.2502885,146.32,146.29,32.57611894]
[1726858668246,0.2502885,146.32,146.3,14.19378105]
[1726858668421,0.2502885,146.32,146.29,32.57611894]
[1726858668627,0.2502885,146.32,146.29,20.0]
[1726858673754,0.2502885,146.32,146.28,10.0]
[1726858673941,0.2502885,146.32,146.29,1.36697685]
[1726858674141,0.2502885,146.32,146.28,10.0]
[1726858675453,0.2502885,146.32,146.29,0.25098]
[1726858675644,0.2502885,146.32,146.29,0.12549]
[1726858676342,0.2502885,146.32,146.28,10.0]
[1726858687546,0.2502885,146.32,146.29,20.12549]
[1726858693662,0.2502885,146.32,146.29,20.0]
[1726858699352,0.2502885,146.36,146.32,16.63428]
[1726858699563,0.2502885,146.36,146.35,56.60398294]
[1726858699763,0.315666,146.46,146.37,0.25098]
[1726858699971,0.315666,146.46,146.42,20.0]
[1726858700269,0.315666,146.46,146.43,12.57611894]
[1726858700472,0.315666,146.46,146.35,18.20577099]
[1726858700762,0.315666,146.46,146.36,1.36565227]
[1726858700973,0.315666,146.46,146.33,16.3833]
[1726858700974,0.315666,146.46,146.34,0.25098]
[1726858701274,0.315666,146.46,146.4,12.57611894]
[1726858701477,0.315666,146.46,146.34,0.25098]
[1726858701478,2.02292858,146.46,146.34,0.25098]
[1726858701639,2.02292858,146.46,146.39,12.57611894]
[1726858701842,0.315666,146.46,146.39,12.57611894]
[1726858702146,0.315666,146.46,146.33,22.9606]
[1726858702147,20.0,146.42,146.33,12.57611894]
[1726858702361,20.0,146.42,146.35,12.57611894]
[1726858702679,20.0,146.42,146.32,37.99349468]
[1726858702680,23.776884,146.4,146.32,37.99349468]
[1726858702846,23.776884,146.4,146.33,13.94252089]
[1726858703048,23.776884,146.4,146.33,12.57611894]
[1726858704063,23.776884,146.4,146.34,0.25098]
[1726858704372,23.776884,146.4,146.33,20.25098]
[1726858704576,1.707891,146.39,146.32,37.99349468]
[1726858704774,23.776884,146.38,146.32,37.99349468]
[1726858705163,6.3702,146.43,146.35,12.57611894]
[1726858705952,6.3702,146.43,146.31,20.0]
[1726858706150,6.3702,146.43,146.33,12.57611894]
[1726858706351,6.3702,146.43,146.34,20.0]
[1726858706774,23.776884,146.42,146.34,20.0]
[1726858708070,6.3702,146.43,146.32,0.25098]
[1726858708254,6.3702,146.43,146.31,39.6194117]
[1726858708255,6.3702,146.43,146.34,20.25098]
[1726858709667,23.776884,146.42,146.33,0.25098]
[1726858710783,23.776884,146.4,146.33,0.25098]
[1726858712276,23.776884,146.4,146.33,0.2278264]
[1726858712462,6.3702,146.43,146.36,20.12549]
[1726858712666,15.809,146.44,146.38,0.12549]
[1726858712977,0.315666,146.46,146.38,20.12549]
[1726858713982,24.09255,146.46,146.38,0.12549]
[1726858714178,24.09255,146.46,146.37,20.0]
[1726858714179,0.315666,146.46,146.4,20.12549]
[1726858714359,0.315666,146.46,146.41,0.12549]
[1726858714864,0.315666,146.46,146.41,19.7449017]
[1726858715057,0.315666,146.46,146.43,0.25098]
[1726858715864,0.315666,146.46,146.44,1.36530366]
[1726858716068,0.315666,146.46,146.43,0.25098]
[1726858716485,0.315666,146.46,146.44,20.0]
[1726858716667,0.315666,146.46,146.45,0.25098]
[1726858722077,0.315666,146.46,146.45,41.23543302]
[1726858722685,0.315666,146.46,146.45,39.8703917]
[1726858723770,0.315666,146.46,146.45,0.25098]
[1726858726090,0.315666,146.46,146.44,20.0]
[1726858726792,0.315666,146.46,146.4,16.3413]
[1726858726975,0.315666,146.46,146.38,29.6194117]
[1726858728093,0.315666,146.46,146.39,0.25098]
[1726858728901,0.315666,146.46,146.39,20.25098]
[1726858730387,0.315666,146.46,146.41,20.25098]
[1726858736180,0.315666,146.46,146.43,0.12549]
[1726858736571,0.315666,146.46,146.43,14.03361295]
[1726858736776,0.315666,146.46,146.43,0.12549]
[1726858736991,0.315666,146.46,146.43,0.25098]
[1726858737377,0.315666,146.46,146.42,20.0]
[1726858737577,0.315666,146.46,146.43,0.12549]
[1726858739503,0.315666,146.46,146.4,0.12549]
[1726858739687,0.315666,146.46,146.4,0.25098]
[1726858740089,0.315666,146.46,146.39,32.54265574]
[1726858740907,0.315666,146.46,146.39,20.0]
[1726858741301,0.315666,146.46,146.42,20.0]
[1726858741604,0.315666,146.46,146.43,1.36566685]
[1726858741806,0.315666,146.46,146.44,1.36551852]
[1726858742108,0.315666,146.46,146.44,12.54265574]
[1726858742601,0.315666,146.46,146.45,0.12549]
[1726858742796,0.315666,146.46,146.44,20.0]
[1726858743391,0.315666,146.46,146.41,20.12549]
[1726858744099,0.315666,146.46,146.4,0.12549]
[1726858746285,23.776884,146.45,146.4,0.12549]
[1726858746607,23.776884,146.45,146.38,10.0]
[1726858747592,23.776884,146.45,146.39,0.25098]
[1726858747791,23.776884,146.45,146.39,20.25098]
[1726858748793,6.603066,146.46,146.41,0.12549]
[1726858749002,6.603066,146.46,146.41,20.12549]
[1726858751016,6.603066,146.46,146.41,0.12549]
[1726858751193,23.776884,146.45,146.4,0.12549]
[1726858752201,25.48402208,146.45,146.39,20.0]
[1726858752416,23.776884,146.45,146.39,20.0]
[1726858752617,23.776884,146.45,146.4,1.36590646]
[1726858752793,6.603066,146.46,146.4,20.96738859]
[1726858752993,6.603066,146.46,146.4,19.60148213]
[1726858753291,0.315666,146.46,146.41,20.0]
[1726858753793,0.315666,146.46,146.42,0.12549]
[1726858755106,0.315666,146.46,146.41,20.0]
[1726858755906,0.315666,146.46,146.39,20.25098]
[1726858758811,2.02274106,146.46,146.39,20.25098]
[1726858759016,23.776884,146.45,146.39,20.0]
[1726858761821,23.2727,146.44,146.39,20.0]
[1726858761998,23.776884,146.43,146.39,20.0]
[1726858763614,23.776884,146.43,146.38,10.0]
[1726858765206,23.776884,146.43,146.39,0.12549]
[1726858766617,25.48427495,146.43,146.38,10.0]
[1726858768033,1.70792976,146.42,146.38,10.0]
[1726858768329,23.776884,146.41,146.32,8.9592052]
[1726858768514,23.776884,146.39,146.32,8.9592052]
[1726858769099,23.776884,146.39,146.33,20.0]
[1726858769321,23.776884,146.39,146.31,20.0]
[1726858770506,23.776884,146.39,146.32,0.25098]
[1726858775535,23.776884,146.39,146.33,1.36642725]
[1726858776216,23.2727,146.44,146.34,0.12549]
[1726858776418,23.2727,146.44,146.34,0.25098]
[1726858776722,1.70768687,146.43,146.34,0.25098]
[1726858777331,15.8183,146.41,146.31,20.0]
[1726858777636,23.776884,146.39,146.31,20.0]
[1726858777810,23.776884,146.37,146.31,20.0]
[1726858778010,23.776884,146.37,146.3,20.0]
[1726858779624,23.776884,146.37,146.31,0.25098]
[1726858780333,1.70816653,146.36,146.31,0.25098]
[1726858780933,23.776884,146.35,146.31,0.25098]
[1726858782742,23.776884,146.35,146.31,0.12549]
[1726858782941,23.276884,146.35,146.31,0.12549]
[1726858783338,23.276884,146.35,146.3,0.25098]
[1726858784438,23.276884,146.35,146.3,19.85246213]
[1726858784743,16.3124,146.36,146.32,0.25098]
[1726858793450,3.82759301,146.55,146.32,0.5012685]
[1726858793451,23.776884,146.38,146.32,0.5012685]
[1726858794254,23.776884,146.38,146.37,6.832]
[1726858802139,15.9508,146.44,146.36,12.5604552]
[1726858802341,15.9508,146.44,146.43,6.8292]
[1726858803959,39.727684,146.44,146.43,6.8292]
[1726858804277,43.902374,146.43,146.36,8.9592052]
[1726858804559,44.027864,146.4,146.35,6.8325]
[1726858804864,6.832,146.37,146.33,6.8335]
[1726858805063,23.776884,146.38,146.32,0.2502885]
[1726858805064,53.87834536,146.36,146.32,0.2502885]
[1726858805265,30.610384,146.34,146.32,0.2502885]
[1726858805470,32.44532643,146.33,146.32,0.2502885]
[1726858805641,32.44532643,146.33,146.29,0.2502885]
[1726858805642,32.31983643,146.33,146.29,0.2502885]
[1726858805840,23.776884,146.32,146.3,6.8349]
[1726858806440,23.776884,146.32,146.31,6.8348]
[1726858808373,21.3328,146.4,146.38,6.8313]
[1726858808542,21.3328,146.4,146.3,15.53328]
[1726858808543,1.70817524,146.39,146.32,0.25098]
[1726858808858,1.70817524,146.39,146.37,6.8319]
[1726858809161,1.70817524,146.39,146.32,0.25098]
[1726858809162,1.70812449,146.39,146.38,6.8315]
[1726858809339,1.70812449,146.39,146.37,6.8319]
[1726858810564,23.776884,146.39,146.36,6.8323]
[1726858810863,23.776884,146.37,146.36,6.8323]
[1726858811171,23.776884,146.37,146.34,6.833]
[1726858811354,1.70846141,146.36,146.34,6.833]
[1726858811545,23.776884,146.35,146.34,6.833]
[1726858813771,23.276884,146.35,146.34,6.833]
[1726858815372,21.70846827,146.39,146.36,6.8321]
[1726858815539,21.70846827,146.39,146.3,0.12549]
[1726858815540,21.70846827,146.39,146.3,0.25098]
[1726858815745,21.3328,146.4,146.37,6.8319]
[1726858816177,28.1634,146.4,146.36,6.8323]
[1726858816548,23.776884,146.39,146.36,6.8323]
[1726858816866,21.3328,146.4,146.37,6.8319]
[1726858817670,21.3328,146.4,146.38,6.8314]
[1726858818468,21.3328,146.4,146.31,15.6297]
[1726858818469,23.776884,146.38,146.32,0.12549]
[1726858818670,25.48524875,146.37,146.36,6.8323]
[1726858819354,25.48524875,146.37,146.31,15.6297]
[1726858819577,23.776884,146.36,146.31,15.6297]
[1726858819875,25.48536558,146.35,146.34,6.8334]
[1726858820170,25.48536558,146.35,146.3,6.8349]
[1726858820171,23.776884,146.34,146.3,6.8349]
[1726858820346,23.776884,146.34,146.32,10.0]
[1726858820347,25.48574331,146.33,146.32,10.0]
[1726858821960,23.776884,146.33,146.32,10.0]
[1726858825266,32.44505802,146.33,146.32,10.0]
[1726858825653,23.776884,146.33,146.32,10.0]
[1726858826151,25.48575178,146.33,146.32,10.0]
[1726858826353,23.776884,146.33,146.32,10.0]
[1726858826551,25.48576647,146.33,146.32,10.0]
[1726858827070,25.48576647,146.33,146.29,0.2502885]
[1726858827071,23.776884,146.32,146.29,0.2502885]
[1726858827278,23.776884,146.3,146.29,0.2502885]
[1726858828156,30.612484,146.3,146.26,6.8371]
[1726858828345,23.776884,146.28,146.26,6.8371]
[1726858828546,23.776884,146.27,146.26,6.8371]
[1726858832467,37.05393851,146.34,146.29,6.8353]
[1726858832773,37.05393851,146.34,146.24,19.64371993]
[1726858832774,20.0,146.33,146.25,20.315666]
[1726858833185,37.05393851,146.34,146.3,6.8348]
[1726858833868,23.776884,146.33,146.3,6.8348]
[1726858835756,23.776884,146.31,146.3,6.8348]
[1726858836771,23.776884,146.31,146.25,0.315666]
[1726858836974,30.22043851,146.34,146.25,7.153066]
[1726858836975,23.776884,146.29,146.25,7.153066]
[1726858837172,23.776884,146.27,146.25,0.315666]
[1726858837375,25.48677801,146.26,146.25,0.315666]
[1726858838178,23.776884,146.26,146.25,0.315666]
[1726858839478,23.776884,146.26,146.25,7.153266]
[1726858841478,23.776884,146.26,146.25,0.315666]
[1726858843782,23.776884,146.26,146.25,7.153266]
[1726858849188,20.0,146.32,146.25,0.315666]
[1726858849672,26.8344,146.32,146.28,6.8358]
[1726858850975,23.776884,146.31,146.28,6.3358]
[1726858852990,23.776884,146.31,146.28,5.8358]
[1726858853292,23.776884,146.31,146.3,6.8352]
[1726858854175,23.776884,146.31,146.29,6.8356]
[1726858854377,25.4859877,146.3,146.29,6.8356]
[1726858854589,23.776884,146.29,146.28,6.836]
[1726858862193,7.88503851,146.34,146.33,6.8338]
[1726858863307,7.88503851,146.34,146.32,6.8341]
[1726858864004,23.776884,146.33,146.32,6.8341]
[1726858865500,25.48565359,146.33,146.31,6.8346]
[1726858865707,25.48565359,146.33,146.29,15.1239]
[1726858866003,23.776884,146.33,146.29,15.1239]
[1726858866405,7.88503851,146.34,146.29,15.1239]
[1726858866616,0.2502885,146.4,146.36,6.8323]
[1726858866779,0.2502885,146.4,146.34,19.64371993]
[1726858866980,0.2502885,146.4,146.38,6.8311]
[1726858867204,1.95840495,146.4,146.35,20.0]
[1726858867508,8.78900495,146.4,146.36,6.8323]
[1726858867879,8.78900495,146.4,146.33,20.0]
[1726858868092,23.776884,146.39,146.33,20.0]
[1726858868404,0.2502885,146.4,146.33,20.0]
[1726858868708,24.0271725,146.4,146.33,20.0]
[1726858869079,0.2502885,146.4,146.34,19.64371993]
[1726858869495,0.2502885,146.4,146.37,6.8318]
[1726858869901,0.2502885,146.4,146.34,19.64371993]
[1726858869902,0.2502885,146.4,146.36,15.8811]
[1726858870094,1.70797024,146.39,146.36,15.8811]
[1726858870419,0.2502885,146.4,146.36,15.8811]
[1726858870915,0.2502885,146.4,146.39,20.0]
[1726858871118,0.2502885,146.45,146.39,21.61694686]
[1726858871321,0.2502885,146.45,146.43,19.64371993]
[1726858871490,0.2502885,146.45,146.43,34.70331993]
[1726858871693,0.2502885,146.45,146.44,20.0]
[1726858872513,0.2502885,146.45,146.43,15.0596]
[1726858874493,0.2502885,146.45,146.43,34.70331993]
[1726858878816,0.2502885,146.45,146.43,15.0596]
[1726858879128,0.2502885,146.45,146.43,39.64371993]
[1726858880424,0.2502885,146.45,146.43,20.0]
[1726858880727,0.2502885,146.45,146.41,19.64371993]
[1726858884934,0.2502885,146.45,146.43,19.64371993]
[1726858887747,0.3476851,146.49,146.44,41.26032736]
[1726858887923,0.3476851,146.49,146.47,19.64371993]
[1726858896235,0.3476851,146.49,146.48,20.0]
[1726858897740,0.3476851,146.49,146.46,16.2441]
[1726858897741,0.3476851,146.49,146.46,20.0]
[1726858897923,0.3476851,146.49,146.45,19.64371993]
[1726858898745,2.05468687,146.49,146.45,19.64371993]
[1726858899041,23.776884,146.48,146.43,19.64371993]
[1726858899227,1.70710963,146.47,146.44,20.0]
[1726858899421,23.776884,146.46,146.44,20.0]
[1726858900747,0.3476851,146.49,146.45,19.64371993]
[1726858901541,23.776884,146.48,146.45,19.64371993]
[1726858904245,0.3476851,146.49,146.43,20.0]
[1726858904246,0.3476851,146.49,146.47,19.64371993]
[1726858904440,0.3476851,146.49,146.48,20.0]
[1726858907551,0.3476851,146.49,146.48,36.79443606]
[1726858908051,0.315666,146.55,146.48,36.79443606]
[1726858908052,0.315666,146.55,146.51,19.64371993]
[1726858909329,0.315666,146.55,146.51,29.64371993]
[1726858911926,0.315666,146.55,146.53,19.64371993]
[1726858913233,0.315666,146.55,146.52,20.0]
[1726858913435,0.315666,146.55,146.52,39.64371993]
[1726858914550,44.027864,146.52,146.51,10.0]
[1726858914759,50.727374,146.52,146.51,10.0]
[1726858915065,45.7348167,146.52,146.4,36.06901993]
[1726858915246,0.12549,146.51,146.4,36.06901993]
[1726858915567,6.8264,146.49,146.4,36.06901993]
[1726858915766,6.8264,146.49,146.42,19.64371993]
[1726858916459,23.776884,146.52,146.46,19.64371993]
[1726858917261,30.601884,146.52,146.46,19.64371993]
[1726858917559,30.601884,146.52,146.44,19.89469993]
[1726858917763,23.776884,146.5,146.45,20.0]
[1726858918068,23.776884,146.48,146.45,20.0]
[1726858918263,1.70696099,146.47,146.45,20.0]
[1726858918564,23.776884,146.49,146.45,20.0]
[1726858918951,23.776884,146.5,146.45,20.0]
[1726858920741,23.776884,146.48,146.45,20.0]
[1726858921771,6.825,146.52,146.46,19.64371993]
[1726858922079,23.776884,146.52,146.46,19.64371993]
[1726858922644,7.139366,146.55,146.47,20.0]
[1726858923271,1.70665577,146.53,146.47,20.0]
[1726858923571,1.70665577,146.53,146.45,20.0]
[1726858923775,1.70665577,146.53,146.44,19.64371993]
[1726858924080,6.8256,146.51,146.44,19.64371993]
[1726858924259,23.776884,146.49,146.44,19.64371993]
[1726858924459,23.776884,146.47,146.44,19.64371993]
[1726858924876,6.8251,146.52,146.44,19.64371993]
[1726858925078,23.776884,146.51,146.44,19.64371993]
[1726858925571,23.776884,146.49,146.44,19.64371993]
[1726858925771,1.70690919,146.48,146.44,19.64371993]
[1726858926479,23.776884,146.49,146.44,19.64371993]
[1726858927371,15.6321,146.54,146.46,19.64371993]
[1726858927372,22.4562,146.54,146.46,19.64371993]
[1726858927579,32.30813469,146.53,146.46,19.64371993]
[1726858928062,6.825,146.52,146.46,19.64371993]
[1726858928274,23.776884,146.5,146.46,19.64371993]
[1726858929080,15.6321,146.54,146.48,19.64371993]
[1726858929263,7.139366,146.55,146.48,21.00894681]
[1726858929264,0.315666,146.55,146.48,21.00894681]
[1726858929455,0.315666,146.55,146.48,19.64371993]
[1726858929661,7.139266,146.55,146.48,19.64371993]
[1726858930184,0.315666,146.55,146.48,19.64371993]
[1726858930371,7.139266,146.55,146.48,19.64371993]
[1726858930986,23.776884,146.54,146.48,19.64371993]
[1726858931183,0.315666,146.55,146.5,19.64371993]
[1726858931680,7.139266,146.55,146.5,19.64371993]
[1726858931890,0.315666,146.55,146.49,20.0]
[1726858932566,24.09255,146.55,146.49,20.0]
[1726858932794,0.315666,146.55,146.5,19.64371993]
[1726858933590,23.776884,146.53,146.49,20.0]
[1726858933892,0.315666,146.55,146.49,20.0]
[1726858934074,23.776884,146.53,146.48,19.64371993]
[1726858934991,23.776884,146.54,146.48,19.64371993]
[1726858935591,0.315666,146.55,146.48,19.64371993]
[1726858937384,2.02188445,146.55,146.5,19.64371993]
[1726858937588,0.315666,146.55,146.5,19.64371993]
[1726858938797,0.315666,146.55,146.51,20.0]
[1726858939871,23.776884,146.54,146.51,20.0]
[1726858940074,23.776884,146.54,146.49,20.0]
[1726858940404,24.09255,146.55,146.49,20.0]
[1726858941280,23.776884,146.56,146.49,20.0]
[1726858943678,6.8231,146.56,146.49,20.0]
[1726858943998,23.276884,146.55,146.51,12.52934073]
[1726858944888,0.3476851,146.58,146.53,12.52934073]
[1726858945084,7.1699851,146.58,146.53,12.52934073]
[1726858945525,0.3476851,146.58,146.53,12.52934073]
[1726858945892,7.1699851,146.58,146.53,12.52934073]
[1726858946091,23.776884,146.56,146.53,12.52934073]
[1726858946319,23.776884,146.57,146.53,12.52934073]
[1726858946819,23.776884,146.55,146.51,12.52934073]
[1726858947002,1.70634763,146.54,146.51,12.52934073]
[1726858947815,23.776884,146.53,146.49,20.0]
[1726858948026,23.776884,146.53,146.49,32.52934073]
[1726858948316,23.776884,146.53,146.49,12.52934073]
[1726858948628,0.3476851,146.58,146.51,12.52934073]
[1726858948991,24.1245691,146.58,146.51,12.52934073]
[1726858949211,24.1245691,146.58,146.53,12.52934073]
[1726858949410,24.1245691,146.58,146.49,21.36526041]
[1726858949411,23.776884,146.57,146.49,20.25098]
[1726858949607,7.1698851,146.58,146.53,12.52934073]
[1726858949895,1.70617624,146.57,146.53,12.52934073]
[1726858951022,23.776884,146.56,146.53,12.52934073]
[1726858951308,1.70617594,146.55,146.53,12.52934073]
[1726858951489,0.3476851,146.58,146.53,12.52934073]
[1726858951690,0.3476851,146.58,146.55,12.52934073]
[1726858953618,0.3476851,146.58,146.53,12.52934073]
[1726858953806,23.776884,146.57,146.53,12.52934073]
[1726858954007,1.70599353,146.56,146.53,12.52934073]
[1726858955105,0.3476851,146.58,146.53,12.52934073]
[1726858955298,0.3476851,146.58,146.54,12.52934073]
[1726858955699,0.3476851,146.58,146.57,12.52934073]
[1726858955911,0.3476851,146.58,146.57,32.52934073]
[1726858956114,1.50368175,146.64,146.58,20.0]
[1726858956115,0.315666,146.64,146.58,20.0]
[1726858956319,0.315666,146.64,146.62,12.52934073]
[1726858958223,0.315666,146.64,146.6,19.54919455]
[1726858959419,24.09255,146.64,146.58,39.54919455]
[1726858959603,0.315666,146.64,146.58,39.54919455]
[1726858961325,23.776884,146.62,146.58,39.54919455]
[1726858961516,1.70545718,146.61,146.58,39.54919455]
[1726858962107,23.776884,146.62,146.58,39.54919455]
[1726858967434,23.776884,146.62,146.6,19.54919455]
[1726858967641,0.315666,146.64,146.6,19.54919455]
[1726858970116,0.315666,146.64,146.58,20.0]
[1726858970117,0.315666,146.64,146.58,39.54919455]
[1726858971714,23.776884,146.62,146.53,6.6162]
[1726858971925,23.776884,146.6,146.56,20.0]
[1726858972141,23.776884,146.6,146.57,19.54919455]
[1726858973323,23.776884,146.61,146.57,19.54919455]
[1726858973517,1.7055913,146.6,146.57,19.54919455]
[1726858976445,1.7055913,146.6,146.55,19.54919455]
[1726858976627,1.7055913,146.6,146.56,20.0]
[1726858976824,23.776884,146.59,146.56,20.0]
[1726858977136,1.70558994,146.59,146.56,20.0]
[1726858977646,1.70573241,146.58,146.54,20.0]
[1726858977940,23.776884,146.57,146.52,16.0078]
[1726858978113,1.70605336,146.56,146.52,16.0078]
[1726858979941,1.70605336,146.56,146.54,12.52577168]
[1726858980647,23.776884,146.57,146.54,12.52577168]
[1726858981227,23.776884,146.57,146.52,16.0078]
[1726858981228,23.776884,146.57,146.55,12.52577168]
[1726858981538,23.776884,146.6,146.56,12.52577168]
[1726858981842,23.776884,146.6,146.52,16.0078]
[1726858981843,23.776884,146.6,146.57,12.52577168]
[1726858982341,23.776884,146.58,146.56,12.52577168]